Cogmind - Beta 17 @@@ ROGUE MODE // 2026.07.30 @ 22:21:00 Player: TheSkyeDoctor Result: Destroyed by H-61 Shepherd with Heavy Assault Cannon Performance ------------- Evolutions (2) 1000 Regions Visited (3) 600 Robots Destroyed (60) 300 Value Destroyed (1609) 1609 Prototype IDs (3) 60 Alien Tech Used (0) 0 Bonus (5187) 5187 TOTAL SCORE: 8756 Bonus ------- High Alert Combat Kills 261 Prayed to X0-1V1 5000 Friendly Fire -74 Cogmind --------- Core Integrity 0/450 Matter 130/300 Energy 118/280 System Corruption 0% Temperature Cool (90) Movement Treading (160) Location -8/Materials Parts ------- > --- POWER (1) -------- Heavy Ion Engine > --- PROPULSION (3) --- Light Treads Light Treads Light Treads > --- UTILITY (3) ------ Improved Heat Sink Large Storage Unit X0-1V1's Piety Tracker > --- WEAPON (4) ------- Particle Gun Pulse Rifle Missile Launcher Mace (fused) > --- INVENTORY (16) --- Improved Terrain Scanner Heavy Assault Rifle Heavy Mace Peak State ------------ > --- POWER ------------ Heavy Ion Engine > --- PROPULSION ------- Light Treads Light Treads Light Treads > --- UTILITY ---------- Improved Heat Sink Large Storage Unit X0-1V1's Piety Tracker > --- WEAPON ----------- Minigun Grenade Launcher Greatsword > --- INVENTORY -------- Heavy Ion Engine Light Treads Wheel Improved Terrain Scanner Hardened Light Armor Plating Hardened Medium Armor Plating Medium Laser Light Assault Rifle Mini Grenade Launcher Missile Launcher Heavy Mace [Rating: 37] Favorites ----------- Power Ion Engine Engine Ion Engine Power Core Light Nuclear Core Propulsion Light Treads Treads Light Treads Wheel Wheel Utility X0-1V1's Piety Tracker Device X0-1V1's Piety Tracker Storage Small Storage Unit Protection Hardened Medium Armor Plating Weapon Medium Laser Energy Gun Medium Laser Ballistic Gun Assault Rifle Launcher Mini Grenade Launcher Impact Weapon Mace Slashing Weapon Greatsword Build | -11 -10 -10 -8 ------- Run | Yrd Mat Sub Mat Slots Evolved 4 | . . . 4 Power . | . . . . Propulsion 1 | . . . 1 Utility 1 | . . . 1 Weapon 2 | . . . 2 Parts Attached 35 | 9 1 . 25 Power 5 | 2 . . 3 Engine 4 | 2 . . 2 Core 1 | . . . 1 Reactor . | . . . . Propulsion 9 | 2 . . 7 Treads 7 | 2 . . 5 Leg . | . . . . Wheel 2 | . . . 2 Hover . | . . . . Flight . | . . . . Utility 9 | 2 1 . 6 Device 5 | 1 1 . 3 Storage 2 | 1 . . 1 Processor . | . . . . Hackware . | . . . . Protection 2 | . . . 2 Artifact . | . . . . Weapon 12 | 3 . . 9 Energy Gun 3 | 1 . . 2 Energy Cannon . | . . . . Ballistic Gun 5 | 2 . . 3 Ballistic Cannon . | . . . . Launcher 3 | . . . 3 Special Weapon . | . . . . Impact Weapon . | . . . . Slashing Weapon 1 | . . . 1 Piercing Weapon . | . . . . Special Melee Weapon . | . . . . Unidentified Prototypes 3 | . 1 . 2 Parts Lost 22 | . 1 . 21 Power 3 | . . . 3 Propulsion 6 | . . . 6 Utility 4 | . 1 . 3 Weapon 9 | . . . 9 Highest Loss Streak 6 | . 1 . 6 To Critical Strikes . | . . . . Average Backups 5 | 2 4 5 6 Power . | . 1 1 1 Propulsion 1 | . 1 1 1 Utility 1 | . 1 1 2 Weapon 2 | . 1 2 2 Tool/Special . | . . . . Unused Backups 2 | . . . 2 Power . | . . . . Propulsion . | . . . . Utility . | . . . . Weapon 2 | . . . 2 Tool/Special . | . . . . Average Slot Usage (%) 88 | . 90 100 81 Engine 9 | . 14 14 6 Treads 19 | . 28 28 13 Wheel 1 | . . . 3 Device 12 | . 5 14 13 Storage 11 | . 14 14 9 Protection 1 | . . . 2 Energy Gun 9 | . 14 14 6 Ballistic Gun 17 | . 14 14 19 Launcher 1 | . . . 3 Impact Weapon 1 | . . . 1 Peak Build Rating 37 | 7 19 19 37 Average Rating 20 | 5 6 19 27 On Entrance 11 | . 7 19 19 Avg Prop Armor Cover (%) 10 | . . . 10 Naked Turns . | . . . . Heaviest Build 44 | 15 15 15 44 Greatest Support 60 | 40 40 40 60 Greatest Overweight (x) 4 | . . . 4 Average Overweight (x) . | . . . . Largest Inventory Capacity 16 | 8 8 9 16 Average Capacity 11 | 6 8 8 14 Most Carried 12 | 4 5 5 12 Average Carried 5 | 2 4 5 6 Final Capacity 16 | 8 8 9 16 Final Carried 5 | 4 5 5 3 Class Distribution -------------------- 61% | Mutant 26% | Gunner 12% | Tank Dominant Class ---------------- Mutant | -10/Materials Mutant | -10/Subcaves Gunner | -8/Materials Resources | -11 -10 -10 -8 ----------- Run | Yrd Mat Sub Mat Matter Collected 799 | 299 22 58 420 Remotely . | . . . . Salvage Created 1571 | 120 76 106 1269 Parts 107 | 4 6 4 93 Haulers Intercepted 2 | . . . 2 Recyclers Shooed 1 | . . . 1 Parts Field Recycled . | . . . . Retrieved Matter . | . . . . Parts Self-Destructed 5 | . . 5 . Prevented . | . . . . Parts Restored . | . . . . Kills | -11 -10 -10 -8 ------- Run | Yrd Mat Sub Mat Combat Hostiles Destroyed 43 | . 3 2 38 Guns 21 | . 3 2 16 AOE 22 | . . . 22 Classes Destroyed 11 | 2 2 2 5 Worker 4 | . . . 4 Builder 5 | . . . 5 Tunneler 1 | 1 . . . Hauler 2 | . . . 2 Recycler 3 | 1 . . 2 Watcher 2 | . 1 . 1 Swarmer 15 | . 3 . 12 Grunt 23 | . . 2 21 Brawler 1 | . . . 1 Sentry 4 | . . . 4 Scientist 1 | . . 1 . Best Kill Streak 22 | 2 3 2 22 Combat Bots Only 16 | . 3 2 16 Max Kills in Single Turn 4 | 1 1 1 4 Gunslinging . | . . . . Exploded 3 | . . . 3 Melee . | . . . . Uniques/NPCs Destroyed . | . . . . Combat | -11 -10 -10 -8 -------- Run | Yrd Mat Sub Mat Hostile Shots Fired 266 | . 36 51 179 Missed 76 | . 6 20 50 Hits 190 | . 30 31 129 Projectile 190 | . 30 31 129 Critical Strikes 4 | . . 2 2 Damage Taken 2899 | . 242 355 2302 Core 586 | . 58 55 473 Absorbed by Shields . | . . . . Core Remaining (%) 95 | 100 . 90 . Volleys Fired 82 | 3 11 14 54 Largest 4 | 2 2 2 4 Hottest 164 | 70 70 70 164 Shots Fired 189 | 6 21 28 134 Gun 153 | 6 21 28 98 Cannon . | . . . . Launcher 36 | . . . 36 Special . | . . . . Kinetic 112 | 3 11 14 84 Thermal 41 | 3 10 14 14 Explosive 36 | . . . 36 Electromagnetic . | . . . . Robot Hit Streak 11 | 5 8 11 10 Robot Miss Streak 3 | . 2 3 3 Penetration Max . | . . . . Secondary Targets 3 | . . . 3 Max Gunslinging Chain 1 | . . . 1 Shots Hit Robots 118 | 5 13 18 82 Core Hits 114 | 3 5 7 99 Critical Kills . | . . . . Critical Parts Destroyed . | . . . . Critical Strikes 2 | . 1 1 . Burn 2 | . 1 1 . Melee Attacks . | . . . . Impact . | . . . . Slashing . | . . . . Piercing . | . . . . Sneak Attacks . | . . . . Combat Hostiles . | . . . . Follow-up Attacks . | . . . . Damage Inflicted 4346 | 62 163 246 3875 Guns 1416 | 62 163 246 945 Cannons . | . . . . Explosions 2930 | . . . 2930 Melee . | . . . . Ramming . | . . . . Kinetic 1000 | 24 88 119 769 Thermal 490 | 38 75 127 250 Explosive 2856 | . . . 2856 Electromagnetic . | . . . . Impact . | . . . . Slashing . | . . . . Piercing . | . . . . Highest Corruption . | . . . . Average Corruption . | . . . . Corruption Purged . | . . . . Corruption Blocked . | . . . . Overload Shots . | . . . . Overflow Damage 108 | . . . 108 Projectiles . | . . . . Explosions 108 | . . . 108 Melee . | . . . . Knockbacks . | . . . . Impact . | . . . . Kinetic . | . . . . Secondary . | . . . . Self-Inflicted Damage 382 | . . . 382 Shots 10 | . . . 10 Rammed . | . . . . Targets Rammed . | . . . . Kicked . | . . . . Crushed . | . . . . Highest Temperature 127 | 27 63 10 127 Average Temperature 29 | 14 24 10 34 Received Heat Transfer 750 | . . 165 585 Siege Activations . | . . . . Martial Activations . | . . . . Shielding Activations . | . . . . Robots Disrupted . | . . . . Combat Hostiles . | . . . . Robots Corrupted . | . . . . Combat Hostiles . | . . . . Parts Fried . | . . . . Impact Corruptions . | . . . . Robots Melted . | . . . . Combat Hostiles . | . . . . Parts Melted . | . . . . Heat Transferred 1345 | 111 296 444 494 Parts Sabotaged . | . . . . Parts Stolen . | . . . . Parts Stripped . | . . . . Power Chain Reactions . | . . . . Alert | -11 -10 -10 -8 ------- Run | Yrd Mat Sub Mat Maximum Alert Level 3 | . . . 3 Low Security (%) 72 | 100 100 . 60 Level 1 4 | . . . 6 Level 2 7 | . . . 11 Level 3 15 | . . . 22 Level 4 . | . . . . Level 5 . | . . . . High Security . | . . . . Max Security . | . . . . Peak Influence 981 | 10 80 . 981 Initial 26 | . . . 26 Average 211 | . 34 . 292 Influence Increases 1549 | 10 108 110 1321 Destroy 0b10 Robot/C 860 | . 60 40 760 Destroy 0b10 Robot/NC 85 | 10 5 . 70 Destroy Leader 178 | . 12 10 156 Successful Hack 7 | . . . 7 Disable Machine 105 | . . . 105 Destroy Structure 194 | . 1 . 193 Lose Combat Pursuer 120 | . 30 60 30 Influence Decreases 593 | 10 90 76 417 Entered New Map 36 | . . 10 26 Time Decay 347 | 10 80 66 191 Lost Part 210 | . 10 . 200 Squads Dispatched 9 | . 1 . 8 Investigation 2 | . . . 2 Extermination . | . . . . Reinforcement 4 | . 1 . 3 Assault . | . . . . Garrison 3 | . . . 3 Intercept . | . . . . Searches Triggered . | . . . . Construction Impeded . | . . . . Haulers Reinforced . | . . . . Active Scanning Responses . | . . . . Cargo Convoy Interrupts . | . . . . Stealth | -11 -10 -10 -8 --------- Run | Yrd Mat Sub Mat Distress Signals 2 | . . . 2 Communications Jammed . | . . . . Distress Signals . | . . . . Times Spotted 59 | . 7 9 43 Peak Tracking Total 9 | . 3 6 9 Tactical Retreats 5 | . 1 2 2 Traps | -11 -10 -10 -8 ------- Run | Yrd Mat Sub Mat Traps Triggered 2 | . . 1 1 Indirectly . | . . . . Trap Hack Attempts . | . . . . Triggered . | . . . . Disarmed . | . . . . Reprogrammed . | . . . . Reused . | . . . . Traps Extracted . | . . . . Installed . | . . . . Triggered . | . . . . Machines | -11 -10 -10 -8 ---------- Run | Yrd Mat Sub Mat Machines Disabled 7 | . . . 7 Max in Single Turn 2 | . . . 2 Machines Repaired . | . . . . Machines Dismantled . | . . . . Machines Sabotaged . | . . . . Overloaded Fab Kills . | . . . . Hacking | -11 -10 -10 -8 --------- Run | Yrd Mat Sub Mat Machines Accessed 3 | . . . 3 Terminals 2 | . . . 2 Fabricators . | . . . . Repair Stations . | . . . . Recycling Units . | . . . . Scanalyzers . | . . . . Garrison Access 1 | . . . 1 Total Hacks 9 | . . . 9 Successful 1 | . . . 1 Failed 8 | . . . 8 Catastrophic 3 | . . . 3 Database Lockouts . | . . . . Manual 5 | . 1 . 4 Terminals 6 | . . . 6 Fabricators . | . . . . Repair Stations . | . . . . Recycling Units . | . . . . Scanalyzers . | . . . . Garrison Access 3 | . . . 3 Terminal Hacks 1 | . . . 1 Branch Access Points 1 | . . . 1 Fabricator Hacks . | . . . . Repair Station Hacks . | . . . . Recycling Unit Hacks . | . . . . Scanalyzer . | . . . . Garrison Access Hacks . | . . . . Unauthorized Hacks . | . . . . Terminals . | . . . . Fabricators . | . . . . Repair Stations . | . . . . Recycling Units . | . . . . Scanalyzers . | . . . . Garrison Access . | . . . . Data Cores Recovered . | . . . . Used . | . . . . Hacking Detections 3 | . . . 3 Full Trace Events 2 | . . . 2 Feedback Events . | . . . . Feedback Blocked . | . . . . Robot Schematics Acquired . | . . . . Robots Built . | . . . . Authchips . | . . . . Time . | . . . . Total Robot Build Rating . | . . . . Part Schematics Acquired . | . . . . Parts Built . | . . . . Authchips . | . . . . Time . | . . . . Total Part Build Rating . | . . . . Part Studies Acquired . | . . . . Parts Repaired . | . . . . Time . | . . . . Parts Recycled . | . . . . Recycled Matter . | . . . . Retrieved Matter . | . . . . Retrieved Components . | . . . . Parts Scanalyzed . | . . . . Part Schematics Acquired . | . . . . Parts Damaged . | . . . . Bothacking | -11 -10 -10 -8 ------------ Run | Yrd Mat Sub Mat Used RIF Installer . | . . . . Robots Hacked . | . . . . Non-combat . | . . . . Combat . | . . . . Robot Hacks Applied . | . . . . Relay Couplers Released . | . . . . Fabnet Peak Effective % . | . . . . Robots Rewired . | . . . . Allies Hacked . | . . . . Hacks Repelled . | . . . . Allies | -11 -10 -10 -8 -------- Run | Yrd Mat Sub Mat Total Allies . | . . . . Largest Group . | . . . . Highest-Rated Group . | . . . . Highest-Rated Ally . | . . . . Total Orders . | . . . . Ally Attacks . | . . . . Total Damage . | . . . . Kills . | . . . . Allies Corrupted . | . . . . Allies Melted . | . . . . X0-1V1 Amusement Gains 94 | . 9 . 85 Good Acts 8 | . . 3 5 Intel | -11 -10 -10 -8 ------- Run | Yrd Mat Sub Mat Active Infowar (turns) 112 | 37 74 . 1 Terrain 1 | . . . 1 Seismic 111 | 37 74 . . Robot Analysis Total . | . . . . Derelict Logs Recovered . | . . . . Drone Launches . | . . . . Drone Recoveries . | . . . . Exploration | -11 -10 -10 -8 ------------- Run | Yrd Mat Sub Mat Turns Passed 1599 | 125 232 404 838 Spaces Moved 816 | 65 122 227 402 Core 3 | 3 . . . Treads 701 | 62 122 227 290 Legs . | . . . . Wheels 112 | . . . 112 Hover . | . . . . Flight . | . . . . Fastest Speed 50 | 50 160 160 95 Average Speed 156 | 154 160 160 154 Slowest Speed 320 | 160 160 160 320 Overloaded Moves . | . . . . Propulsion Burnouts . | . . . . Robots Hopped . | . . . . Potential Cave-ins . | . . . . Cave-ins Triggered . | . . . . Exploration Rate (%) 23 | 4 28 16 44 Regions Visited 3 Branch Regions 1 Pre-discovered Areas . | . . . . Known Exits Taken . | . . . . Unknown Exits Taken 3 | 1 1 1 . Scrap Searched . | . . . . Spaces Dug . | . . . . Terrain Destroyed 217 | . . . 217 Melee . | . . . . Projectile . | . . . . AOE 217 | . . . 217 Terrain Rammed . | . . . . Walls Destroyed . | . . . . Machines Disabled . | . . . . Actions | -11 -10 -10 -8 --------- Run | Yrd Mat Sub Mat Total 977 | 79 137 240 521 Wait 4 | . 3 . 1 Move 813 | 64 121 226 402 Hop . | . . . . Pick Up 28 | 2 1 . 25 Fast Attach 9 | 8 1 . . Attach 28 | . . . 28 Detach 4 | 1 . . 3 Swap 6 | 1 . . 5 Drop 3 | . . . 3 Fire 82 | 3 11 14 54 Melee . | . . . . Ram . | . . . . Kick . | . . . . Crush . | . . . . Escape Stasis . | . . . . Rewire . | . . . . Trap . | . . . . Miscellaneous . | . . . . Route ------- -11/Scrapyard -10/Materials -10/Subcaves (discovered 2 exits: *Mat / [*Rec]) -8/Materials (discovered 1 exit: [*Fac]) History --------- Turn | Location | Event 9 | -11/Scrapyard | Discovered new exit (range 15) 126 | -11/Scrapyard | Entered Materials 317 | -10/Materials | Build established: Mutant 343 | -10/Materials | Discovered new exit (range 6) 351 | -10/Materials | Prayed at D.C.S.S. Altar Unit 358 | -10/Materials | Entered Subcaves 359 | -10/Subcaves | Approached by a straggling Scientist 529 | -10/Subcaves | X0-1V1 activates XOMVISION 614 | -10/Subcaves | Discovered new exit (range 14) 728 | -10/Subcaves | Inventory capacity permanently improved by X0-1V1 (+1; -100 max core) 752 | -10/Subcaves | Discovered new exit (range 20) 762 | -10/Subcaves | Entered Materials 762 | -8/Materials | Evolved 4 slots: Propulsion x1, Utility x1, Weapon x2 1073 | -8/Materials | Build established: Gunner 1198 | -8/Materials | Garrison activated, responded to threat 1301 | -8/Materials | Lost 5 parts (3n2w) 1302 | -8/Materials | Destroyed 11 combat bots 1409 | -8/Materials | Core integrity fell below 50% 1433 | -8/Materials | Lost 6 parts (1p1n2u2w) 1466 | -8/Materials | Destroyed 16 combat bots 1569 | -8/Materials | Lost 4 parts (1p1n2w) 1588 | -8/Materials | Discovered new exit (range 16) 1592 | -8/Materials | Core integrity fell below 20% 1600 | -8/Materials | Destroyed by H-61 Shepherd with Heavy Assault Cannon Last Messages --------------- 01553_ Acquired 33 matter. 01556_ The unstable cave ceiling collapses. 01556_ Imp. Hover Unit crushed. 01560_ R-06 Scavenger collects Lgt. Treads. 01561_ The unstable cave ceiling collapses. 01564_ R-06 Scavenger collects Particle Gun. 01567_ R-06 Scavenger collects Hammer. 01579_ Hrd. Medium Armor Plating destroyed. 01579_ X0-1V1 is mildly amused. 01581_ Wheel destroyed. 01581_ Imp. Assault Rifle destroyed. 01583_ Penetrated by Slug. 01588_ Acquired 3 matter. 01588_ EXIT=FOUND 01595_ H-61 Shepherd calls for reinforcements. 01595_ ALERT: Hostile activity reported, dispatching reinforcements to area. 01595_ Slug penetrates Wall. 01600_ Penetrated by Slug. 01600_ X0-1V1 chuckles heartily! Map ----- +----------------------------------------------------+ | ??????????????????????????????????????? | | ??????????????????????????????????????? | | ??????????????????????????????????????? | | ??????????????????????????????????????? | | ??????????????????????????????????????? | | ??????????????????????????????????????? | | ??????????????????????????????????????? | | ??????????????????????????????????????? | | ??????????????????????????????????????? | | ??????????????????????????????????????? | | ??????????????????????? # #???????????? | | ????????????????????? ???????????? | | ????????????????????? ???????????? | | ????????????????????? < ???????????? | | ????????????????????? H ???????????? | | ?????????????????????? ???????????? | | ?????????????????????? ???????????? | | ???????? ????????????? ???????????? | | ?????? #????????????# #???????????? | | ?????# #????????????# #???????????? | | ?????# #????????????# #???????????? | | ?????+ #????????????# #???????????? | | ?????# #???###+?????# #???????????? | | ????## ##??? ?????# %#???????????? | | ????# ###? ?????# +???????????? | | ##### ?? ?????# @#???????????? | | !# #???? ?????#;#%#???????????? | | "" # #???? ???????# #???????????? | | "" # ###### #??????#%#???????????? | | " ## #?# # #??????# #??#####????? | | " ### # ######## # """ #????? | | ## + % + """ #????? | | * ## # ! % # """ #????? | | " # # """ #?? #????? | | # ! # # "" #???? #????? | | # !%# # "" #??????#????? | | [ [# ####????????? | | ! %[ = = #????????? | | =*% ! % ###r##+#????????? | | ! !# =! # ## ??????????? | | # !# ### !## """ #????????? | | / ## # "Y #????????? | | # ##[ """ # """ #????????? | | # ! = ## """ ## #????????? | | # ## """ ## #????????? | | # """ """ ## #########????????? | | # """ """ #########????????????????? | | = # """ """ #????????????????????????? | | [ # #????????????????????????? | | # ########+###????????????????????????? | +----------------------------------------------------+ Best States ------------- Heat Dissipation 45 Energy Generation 14 Energy Capacity 280 Matter Stores 300 Matter Capacity 300 Sight Range 22 Terrain Scan Density 10 Armor Coverage 225 Evasion (%) 41 Recoil Reduction 3 Item Schematics ----------------- None Robot Schematics ------------------ None Fabricated ------------ Nothing Repaired ---------- Nothing Studied --------- None Alien Tech Used ----------------- None Achievements -------------- None Challenges ------------ None Game ------ Seed HeatBiocellMindspike Manual? 0 Play Time 00:12:10 Cumulative 145.2 hours Start 2026.07.30 @ 22:10:13 End 2026.07.30 @ 22:21:00 Sessions 1 Manual Loads 0 Difficulty Rogue Special Mode None Game No. 300 Rogue 300 Adventurer 0 Explorer 0 Win Type - Total 1 Types 1/0/0/0/0/0/0/0/0/0 Lore% 56 Gallery% 56 Achievement% 44 Wizard Run 0 Options --------- Layout 1 ASCII 0 Keyboard 0 Movement Mouse Keybinds 0 Fullscreen 2 Font 24/Smallcaps Map View 50x35 Zoom Use 0% Tactical HUD 1 Map Filters NONE Filters NONE Steam 1 RUN: c3da6e83-536a-45af-82dd-6d8eaaca0cd2